{"text_format":"1","workbook":"xlsx","n_sheets":1,"sheets":["Mixer"],"not_rendered":{"charts":0,"images":0,"macros":1,"external_links":0,"defined_names":1,"comments":0,"pivot_tables":0},"unopened":[],"bounds":{"document_bytes":16777216,"sheet_cells":100000,"rows_first":2000,"rows_last":500,"rows_between":2000,"halvings":0,"cell_chars":16384,"cell_head_chars":4096},"cells_cut":0,"cells_raw":0,"read":"whole","date_system":"1900"}

{"sheet":"Mixer","index":0,"n_rows":34,"n_cols":17,"rows_kept":34,"cut":false,"hidden":false,"merged":[[1,13,1,15],[26,0,26,7],[14,0,15,0],[0,0,0,7],[13,0,13,7],[3,2,3,3],[3,4,3,5],[2,0,2,7],[24,0,25,0],[1,6,1,7],[1,2,1,5],[1,0,1,1],[6,0,9,0],[19,0,21,0],[22,0,22,7]]}
["MIXER MAINTENANCE PROCEDURE\nComplete the form and print it at the end",null,null,null,null,null,null,null,null,null,null,null,"excel leak time\n",null,"calcolo volumi"]
[" SYSTEM:",null," DATE:",null,null,null," OPERATOR:",null,null,null,null,null,"Ctrl+c","clear all the parameters"]
["Mixer in RUN system ON"]
["WHAT","DESCRIPTION","STATUS",null,"RESULT",null,"ACTION LIST","Notes",null,null,null,"Status","Result","Ok","Problem","Solved","#optioncheck"]
["LEDs check","Press the button in the mixer chassis and check if the leds are ok",null,{"$f":"IF(L5,\"Done\",\"To Be Done\")","v":"To Be Done"},null,null,{"$f":"IF(NOT(Q5),IF(AND(L5,M5<>0),IF(M5=1,\"Ok, go ahead with next step\",\"Describe and record the problem. Contact electrical technician\"),\"\"),\"Please select only one option\")","v":""},null,null,null,null,0,{"$f":"IF(AND(N5,NOT(O5),NOT(P5)),1,IF(AND(O5,NOT(N5),NOT(P5)),2,IF(AND(P5,NOT(N5),NOT(O5)),3,0)))","v":0},0,0,0,{"$f":"OR(AND(N5,O5),AND(N5,P5),AND(P5,O5))","v":false}]
["Check Pressure Reducers","Check PI-1X03 reading and compare their value with the corresponding PT-1X03 reading on WinCCOA. \nIs error less than 20%?",null,{"$f":"IF(L6,\"Done\",\"To Be Done\")","v":"To Be Done"},null,null,{"$f":"IF(NOT(Q6),IF(AND(L6,M6<>0),IF(M6=1,\"Take note of the readings, then next step\",\"Take note of the two readings. If possible, set the corresponding PCV to zero and see which one doesn't read zero\"),\"\"),\"Please select only one option\")","v":""},null,null,null,null,0,{"$f":"IF(AND(N6,NOT(O6),NOT(P6)),1,IF(AND(O6,NOT(N6),NOT(P6)),2,IF(AND(P6,NOT(N6),NOT(O6)),3,0)))","v":0},0,0,0,{"$f":"OR(AND(N6,O6),AND(N6,P6),AND(P6,O6))","v":false}]
["Lines pressure","Check if the pressure of each line is equal to the DMFC calibration pressure (indicated on the device). ",null,{"$f":"IF(L7,\"Done\",\"To Be Done\")","v":"To Be Done"},null,null,{"$f":"IF(NOT(Q7),IF(AND(L7,M7<>0),IF(M7=1,\"Great! Go Ahead with the procedure\",\"Adjust the pressure reducer or try to fix the problem. If it doesn't reach the desired value, check the supply pressure on the panel.\"),\"\"),\"Please select only one option\")","v":""},null,null,null,null,0,{"$f":"IF(AND(N7,NOT(O7),NOT(P7)),1,IF(AND(O7,NOT(N7),NOT(P7)),2,IF(AND(P7,NOT(N7),NOT(O7)),3,0)))","v":0},0,0,0,false]
[null,"Compare PCV Tescom gauge pressure with supply pressure on the wall panel for each line: \nregulator pressure should be 0.3-0.5 bar lower than network pressure",null,{"$f":"IF(L8,\"Done\",\"To Be Done\")","v":"To Be Done"},null,null,{"$f":"IF(NOT(Q8),IF(AND(L8,M8<>0),IF(M8=1,\"Ok, next step\",\"Take note of the two values. Supply pressure has to be increased. \nContact David Jaillet.\"),\"\"),\"Please select only one option\")","v":""},null,null,null,null,0,0,0,0,0,false]
[null,"Check that pressure master MFC PI-1103 is lower than pressure slaves MFCs",null,"To Be Done",null,null,{"$f":"IF(NOT(Q9),IF(AND(L9,M9<>0),IF(M9=1,\"Great! Go Ahead with the procedure\",\"Try to adjust and set it 0.3-0.5 bar below master pressure\"),\"\"),\"Please select only one option\")","v":""},null,null,null,null,0,0,0,0,0,false]
[null,"Make sure that the smallest concentration line has the highest pressure",null,"To Be Done",null,null,{"$f":"IF(NOT(Q10),IF(AND(L10,M10<>0),IF(M10=1,\"Great! Go Ahead with the procedure\",\"Adjust the pressure reducer and try to fix the problem. Describe and record the issue\"),\"\"),\"Please select only one option\")","v":""},null,null,null,null,0,0,0,0,0,false]
["Read PI-1009 pressure and compare its value with the PT-1009 reading on WinCCOA","2-3 gauge divisions difference acceptable",null,"To Be Done",null,null,{"$f":"IF(NOT(Q11),IF(AND(L11,M11<>0),IF(M11=1,\"Great! Go Ahead with the procedure\",\"If possible, set the 3-way-valve HV-1011 to exhaust and check the error on the zero. Eventually, replace the device not reading zero \"),\"\"),\"Please select only one option\")","v":""},null,null,null,null,0,0,0,0,0,false]
["Check PICV-1502 setting (which is pressurizing the  Zimmerli PCV-1007)","If the system is in:\n- recirculating mode: ~ 200mbar below PT1009 reading pressure\n- open mode:  ~ 600 mbar\n",null,"To Be Done",null,null,{"$f":"IF(NOT(Q12),IF(AND(L12,M12<>0),IF(M12=1,\"Great! Go Ahead with the procedure\",\"Adjust the PICV setting. Describe and record the problem\"),\"\"),\"Please select only one option\")","v":""},null,null,null,null,0,0,0,0,0,false]
["Check YV-1008 bypass is closed",null,null,"To Be Done",null,null,{"$f":"IF(NOT(Q13),IF(AND(L13,M13<>0),IF(M13=1,\"Great! Go Ahead with the procedure\",\"Close it\"),\"\"),\"Please select only one option\")","v":""},null,null,null,null,0,0,0,0,0,false]
["Mixer in STOP system ON or OFF",null,null,null,null,null,null,null,null,null,null,0,0,0,0,0,false]
["Documentation check ","P&ID and electrical drawings are present in the rack",null,"To Be Done",null,null,{"$f":"IF(NOT(Q15),IF(AND(L15,M15<>0),IF(M15=1,\"Great! Go Ahead with the procedure\",\"Print it from EDMS, after having done next step\"),\"\"),\"Please select only one option\")","v":""},null,null,null,null,0,0,0,0,0,false]
[null,"Documentation is present in EDMS and up to date.",null,"To Be Done",null,null,{"$f":"IF(NOT(Q16),IF(AND(L16,M16<>0),IF(M16=1,\"Great! Go Ahead with the procedure\",\"Ask the responsible of the system to update it\"),\"\"),\"Please select only one option\")","v":""},null,null,null,null,0,0,0,0,0,false]
[" Drawing VS Reality"," Check every component has a label in accordance to the name on the P&ID",null,"To Be Done",null,null,{"$f":"IF(NOT(Q17),IF(AND(L17,M17<>0),IF(M17=1,\"Great! Go Ahead with the procedure\",\"Correct wrong/add missing labels\"),\"\"),\"Please select only one option\")","v":""},null,null,null,null,0,0,0,0,0,false]
["Safety valves check","Check on the labels if they are up-to-date (at least 1 year within expiry date)",null,"To Be Done",null,null,{"$f":"IF(NOT(Q18),IF(AND(L18,M18<>0),IF(M18=1,\"Great! Go Ahead with the procedure\",\"Contact the person in charge of Safety Valves calibration\"),\"\"),\"Please select only one option\")","v":""},null,null,null,null,0,0,0,0,0,false]
["PI-1009 Zero Check","Turn the 3-way-valve HV-1011 to exhaust and make sure that PI-1009 reads 0 mbar",null,"To Be Done",null,null,{"$f":"IF(NOT(Q19),IF(AND(L19,M19<>0),IF(M19=1,\"Great! Go Ahead with the procedure\",\"Take note of the value read. If this is more than 50 mbar or less than 0 mbar PI must be replaced\"),\"\"),\"Please select only one option\")","v":""},null,null,null,null,0,0,0,0,0,false]
["MFC","Check that all DMFCs read 0 l/h",null,"To Be Done",null,null,{"$f":"IF(NOT(Q20),IF(AND(L20,M20<>0),IF(M20=1,\"Great! Go Ahead with the procedure\",\"Check Deadbeand has a reasonable value (not too high)\"),\"\"),\"Please select only one option\")","v":""},null,null,null,null,0,0,0,0,0,false]
[null,"Put MFCs in manual mode and check they reads zero flow",null,"To Be Done",null,null,{"$f":"IF(NOT(Q21),IF(AND(L21,M21<>0),IF(M21=1,\"Great! Go Ahead with the procedure\",\"Dismount the MFC and give it to the responsible for check\"),\"\"),\"Please select only one option\")","v":""},null,null,null,null,0,0,0,0,0,false]
[null,"Close manual valves after the DMFCs. Dismount the DMFCs for the check of calibration and internal PID settings. Remount them in their position.",null,"To Be Done",null,null,{"$f":"IF(NOT(Q22),IF(AND(L22,M22<>0),IF(M22=1,\"Great! Go ahead with the procedure\",\"Describe the problem\"),\"\"),\"Please select only one option\")","v":""},null,null,null,null,0,0,0,0,0,false]
["Leak tests",null,null,null,null,null,null,null,null,null,null,0,0,0,0,0,false]
["Leak test of supply lines (from wall panels to mixer in SG)","Close the PCV-1X02 and send gas to each line from the gas panel (pressure?). Wait and check if…",null,{"$f":"IF(L24,\"Done\",\"To Be Done\")","v":"To Be Done"},null,null,{"$f":"IF(NOT(Q24),IF(AND(L24,M24<>0),IF(M24=1,\"Great! Go ahead with the procedure\",\"Try to identify if the leak is on the pressure reducer or on the wall panel\"),\"\"),\"Please select only one option\")","v":""},"check in ATLAS",null,null,null,0,0,0,0,0,false]
["Leak test inside the rack","Follow the procedure for: \nNitrogen Leak test",null,"To Be Done",null,null,{"$f":"IF(NOT(Q25),IF(AND(L25,M25<>0),IF(M25=1,\"Great! No need for Detectable gas Leak Test\",\"Perform again the Leak test procedure using a detectable gas and its appropriate sniffer\"),\"\"),\"Please select only one option\")","v":""},null,null,null,null,0,0,0,0,0,false]
[null,"Follow the procedure for: \n Detectable Gas Leak Test",null,"To Be Done",null,null,{"$f":"IF(NOT(Q26),IF(AND(L26,M26<>0),IF(M26=1,\"Take note of the leaking spots detected and the actions taken to fix it \",\"Try to fix the problem. Describe and record the issue\"),\"\"),\"Please select only one option\")","v":""},null,null,null,null,0,0,0,0,0,false]
["Mixer to RESTART system ON or OFF",null,null,null,null,null,null,null,null,null,null,0,0,0,0,0,false]
["Check all Hand Valves position","HV-1X15 closed\nHV-1X07 and HV-1X1X10 open\nFIV-1005 open",null,"To Be Done",null,null,{"$f":"IF(NOT(Q28),IF(AND(L28,M28<>0),IF(M28=1,\"Great! Go Ahead with the procedure\",\"Adjust all the valves for the RUN\"),\"\"),\"Please select only one option\")","v":""},null,null,null,null,0,0,0,0,0,false]
["Make sure the 3-way-valve HV-1011 is to exhaust and try to restart the mixer in RUN mode","Check errors. Wait until Mixer is in RUN and doesn't stop. ",null,"To Be Done",null,null,{"$f":"IF(NOT(Q29),IF(AND(L29,M29<>0),IF(M29=1,\"Great! Go Ahead with the procedure\",\"Try to fix the problem and/or contact Patrick/Michal\"),\"\"),\"Please select only one option\")","v":""},null,null,null,null,0,0,0,0,0,false]
["Leak test","Only if something has been touched after the Leak test in STOP",null,"To Be Done",null,null,{"$f":"IF(NOT(Q30),IF(AND(L30,M30<>0),IF(M30=1,\"Great! Go Ahead with the procedure\",\"Try to fix the problem. Describe and record the problem\"),\"\"),\"Please select only one option\")","v":""},null,null,null,null,0,0,0,0,0,false]
["MFC flow stability check","Make sure the 3 DMFCs’ flows and concentrations are stable\n(fluctuation has to be less than 0.5% of flow reading)",null,"To Be Done",null,null,{"$f":"IF(NOT(Q31),IF(AND(L31,M31<>0),IF(M31=1,\"Great! Go Ahead with the procedure\",\"Check PID parameters and/or contact the responsible\"),\"\"),\"Please select only one option\")","v":""},null,null,null,null,0,0,0,0,0,false]
["Deadband/archiving monitoring","Procedure for Michal/technicians",null,"To Be Done",null,null,{"$f":"IF(NOT(Q32),IF(AND(L32,M32<>0),IF(M32=1,\"Great! Go Ahead with the procedure\",\"Try to fix the problem. Describe and record the problem\"),\"\"),\"Please select only one option\")","v":""},"?",null,null,null,0,0,0,0,0,false]
["Regulation of FIV-1005 and PCV-1007","da definire",null,"To Be Done",null,null,{"$f":"IF(NOT(Q33),IF(AND(L33,M33<>0),IF(M33=1,\"Great! Go Ahead with the procedure\",\"Try to fix the problem. Describe and record the problem\"),\"\"),\"Please select only one option\")","v":""},null,null,null,null,0,0,0,0,0,false]
[null,null,null,null,null,null,null,null,null,null,null,null,null,null,0]